Workbook

Sheet Indice
A13: Calculadora de Rercagos 2023 - CAFICON

Sheet Cálculo
A2: EMPRESA
A3: Actualización y recargos de contribuciones
A5: Monto del impuesto | C5: 500
A6: Fecha en que debió hacerse el pago | C6: 2021-10-17
A7: Fecha de pago o límite de causación de recargos | C7: =TODAY() -> 2023-01-31 | D7: Fecha hasta la cual se causan recargos
A8: Fecha de pago en el caso del art. 9 del RCFF | C8: =C7 -> 2023-01-31 | D8: Fecha hasta la cual se debe actualizar. Sólo se utiliza cuando los recargos se causaron en un periodo del pasado y se pagan ahora.
A10: INPC mes anterior al más reciente | B10: =IF(VLOOKUP(DATE(YEAR(C8),MONTH(C8)-1,1),inpc,2)=0,DATE(YEAR(C8),MONTH(C8)-2,1),DATE(YEAR(C8),MONTH(C8)-1,1)) -> 2022-12-01 | C10: =VLOOKUP(B10,inpc,2) -> 126.4780 | D10: Puede cambiar manualmente los meses si los sugeridos no son los correctos. Encuentra el índice automáticamente.
A11: INPC mes anterior al más antiguo | B11: =IF(VLOOKUP(DATE(YEAR(C6),MONTH(C6)-1,1),inpc,2)=0,DATE(YEAR(C6),MONTH(C6)-2,1),DATE(YEAR(C6),MONTH(C6)-1,1)) -> 2021-09-01 | C11: =VLOOKUP(B11,inpc,2) -> 114.6010
A12: Factor de ajuste | C12: =IF(C10/C11-1<0,0,TRUNC(C10/C11,4)-1) -> 0.1036 | D12: =IF(C12<0,"Si el factor de ajuste es negativo están mal puestas las fechas, si es -1 falta el último índice","") -> 
A13: Tasa de recargos | C13: =SUM(B28:B185) -> 23.52%
A15: Impuesto | C15: =C5 -> 500
A16: Actualización | C16: =ROUND(C5*C12,0) -> 52
A17: Impuesto actualizado | C17: =C15+C16 -> 552
A18: Recargos | C18: =ROUND(C13*C17,0) -> 130
A19: Total a pagar | C19: =C17+C18 -> 682
A28: =C6 -> 2021-10-17 | B28: =IF(A28<$C$7,VLOOKUP(A28,Recargos,2),0) -> 1.47%
A29: =IF(MONTH($A$28+1)-MONTH($A$28)=0,IF(DAY(DATE(YEAR($A$28),MONTH($A$28)+E29,1)-1)>DAY($A$28),DATE(YEAR($A$28),MONTH($A$28)+D29,DAY($A$28)),DATE(YEAR($A$28),MONTH($A$28)+E29,1)-1),IF(DAY(A28)>DAY(DATE(YEAR($A$28),MONTH($A$28)+D29,DAY($A$28))),DATE(YEAR($A$28),MONTH($A$28)+E29,1)-1,DATE(YEAR($A$28),MONTH($A$28)+D29,DAY($A$28)))) -> 2021-11-17 | B29: =IF(A29<$C$7,VLOOKUP(A29,Recargos,2),0) -> 1.47% | D29: 1 | E29: 2
A30: 2021-12-17 | B30: 1.47% | D30: =1+D29 -> 2 | E30: =1+E29 -> 3
A31: 2022-01-17 | B31: 1.47% | D31: =1+D30 -> 3 | E31: =1+E30 -> 4
A32: 2022-02-17 | B32: 1.47% | D32: 4 | E32: 5
A33: 2022-03-17 | B33: 1.47% | D33: 5 | E33: 6
A34: 2022-04-17 | B34: 1.47% | D34: 6 | E34: 7
A35: 2022-05-17 | B35: 1.47% | D35: 7 | E35: 8
A36: 2022-06-17 | B36: 1.47% | D36: 8 | E36: 9
A37: 2022-07-17 | B37: 1.47% | D37: 9 | E37: 10
A38: 2022-08-17 | B38: 1.47% | D38: 10 | E38: 11
A39: 2022-09-17 | B39: 1.47% | D39: 11 | E39: 12
A40: 2022-10-17 | B40: 1.47% | D40: 12 | E40: 13
A41: 2022-11-17 | B41: 1.47% | D41: 13 | E41: 14
A42: 2022-12-17 | B42: 1.47% | D42: 14 | E42: 15
A43: 2023-01-17 | B43: 1.47% | D43: 15 | E43: 16
A44: 2023-02-17 | B44: 0.00% | D44: 16 | E44: 17
A45: 2023-03-17 | B45: 0.00% | D45: 17 | E45: 18
A46: 2023-04-17 | B46: 0.00% | D46: 18 | E46: 19
A47: 2023-05-17 | B47: 0.00% | D47: 19 | E47: 20
A48: 2023-06-17 | B48: 0.00% | D48: 20 | E48: 21
A49: 2023-07-17 | B49: 0.00% | D49: 21 | E49: 22
A50: 2023-08-17 | B50: 0.00% | D50: 22 | E50: 23
A51: 2023-09-17 | B51: 0.00% | D51: 23 | E51: 24
A52: 2023-10-17 | B52: 0.00% | D52: 24 | E52: 25
A53: 2023-11-17 | B53: 0.00% | D53: 25 | E53: 26
A54: 2023-12-17 | B54: 0.00% | D54: 26 | E54: 27
A55: 2024-01-17 | B55: 0.00% | D55: 27 | E55: 28
A56: 2024-02-17 | B56: 0.00% | D56: 28 | E56: 29
A57: 2024-03-17 | B57: 0.00% | D57: 29 | E57: 30
A58: 2024-04-17 | B58: 0.00% | D58: 30 | E58: 31
A59: 2024-05-17 | B59: 0.00% | D59: 31 | E59: 32
A60: 2024-06-17 | B60: 0.00% | D60: 32 | E60: 33
A61: =IF(MONTH($A$28+1)-MONTH($A$28)=0,IF(DAY(DATE(YEAR($A$28),MONTH($A$28)+E61,1)-1)>DAY($A$28),DATE(YEAR($A$28),MONTH($A$28)+D61,DAY($A$28)),DATE(YEAR($A$28),MONTH($A$28)+E61,1)-1),IF(DAY(A60)>DAY(DATE(YEAR($A$28),MONTH($A$28)+D61,DAY($A$28))),DATE(YEAR($A$28),MONTH($A$28)+E61,1)-1,DATE(YEAR($A$28),MONTH($A$28)+D61,DAY($A$28)))) -> 2024-07-17 | B61: 0.00% | D61: 33 | E61: 34
A62: 2024-08-17 | B62: 0.00% | D62: 34 | E62: 35
A63: 2024-09-17 | B63: 0.00% | D63: 35 | E63: 36
A64: 2024-10-17 | B64: 0.00% | D64: 36 | E64: 37
A65: 2024-11-17 | B65: 0.00% | D65: 37 | E65: 38
A66: 2024-12-17 | B66: 0.00% | D66: 38 | E66: 39
A67: 2025-01-17 | B67: 0.00% | D67: 39 | E67: 40
A68: 2025-02-17 | B68: 0.00% | D68: 40 | E68: 41
A69: 2025-03-17 | B69: 0.00% | D69: 41 | E69: 42
A70: 2025-04-17 | B70: 0.00% | D70: 42 | E70: 43
A71: 2025-05-17 | B71: 0.00% | D71: 43 | E71: 44
A72: 2025-06-17 | B72: 0.00% | D72: 44 | E72: 45
A73: 2025-07-17 | B73: 0.00% | D73: 45 | E73: 46
A74: 2025-08-17 | B74: 0.00% | D74: 46 | E74: 47
A75: 2025-09-17 | B75: 0.00% | D75: 47 | E75: 48
A76: 2025-10-17 | B76: 0.00% | D76: 48 | E76: 49
A77: 2025-11-17 | B77: 0.00% | D77: 49 | E77: 50
A78: 2025-12-17 | B78: 0.00% | D78: 50 | E78: 51
A79: 2026-01-17 | B79: 0.00% | D79: 51 | E79: 52
A80: 2026-02-17 | B80: 0.00% | D80: 52 | E80: 53
A81: 2026-03-17 | B81: 0.00% | D81: 53 | E81: 54
A82: 2026-04-17 | B82: 0.00% | D82: 54 | E82: 55
A83: 2026-05-17 | B83: 0.00% | D83: 55 | E83: 56
A84: 2026-06-17 | B84: 0.00% | D84: 56 | E84: 57
A85: 2026-07-17 | B85: 0.00% | D85: 57 | E85: 58
A86: 2026-08-17 | B86: 0.00% | D86: 58 | E86: 59
A87: 2026-09-17 | B87: 0.00% | D87: 59 | E87: 60
A88: 2026-10-17 | B88: 0.00% | D88: 60 | E88: 61
A89: 2026-11-17 | B89: 0.00% | D89: 61 | E89: 62
A90: 2026-12-17 | B90: 0.00% | D90: 62 | E90: 63
A91: 2027-01-17 | B91: 0.00% | D91: 63 | E91: 64
A92: 2027-02-17 | B92: 0.00% | D92: 64 | E92: 65
A93: =IF(MONTH($A$28+1)-MONTH($A$28)=0,IF(DAY(DATE(YEAR($A$28),MONTH($A$28)+E93,1)-1)>DAY($A$28),DATE(YEAR($A$28),MONTH($A$28)+D93,DAY($A$28)),DATE(YEAR($A$28),MONTH($A$28)+E93,1)-1),IF(DAY(A92)>DAY(DATE(YEAR($A$28),MONTH($A$28)+D93,DAY($A$28))),DATE(YEAR($A$28),MONTH($A$28)+E93,1)-1,DATE(YEAR($A$28),MONTH($A$28)+D93,DAY($A$28)))) -> 2027-03-17 | B93: =IF(A93<$C$7,VLOOKUP(A93,Recargos,2),0) -> 0.00% | D93: 65 | E93: 66
A94: 2027-04-17 | B94: 0.00% | D94: 66 | E94: 67
A95: 2027-05-17 | B95: 0.00% | D95: =1+D94 -> 67 | E95: =1+E94 -> 68
A96: 2027-06-17 | B96: 0.00% | D96: 68 | E96: 69
A97: 2027-07-17 | B97: 0.00% | D97: 69 | E97: 70
A98: 2027-08-17 | B98: 0.00% | D98: 70 | E98: 71
A99: 2027-09-17 | B99: 0.00% | D99: 71 | E99: 72
A100: 2027-10-17 | B100: 0.00% | D100: 72 | E100: 73
A101: 2027-11-17 | B101: 0.00% | D101: 73 | E101: 74
A102: 2027-12-17 | B102: 0.00% | D102: 74 | E102: 75
A103: 2028-01-17 | B103: 0.00% | D103: 75 | E103: 76
A104: 2028-02-17 | B104: 0.00% | D104: 76 | E104: 77
A105: 2028-03-17 | B105: 0.00% | D105: 77 | E105: 78
A106: 2028-04-17 | B106: 0.00% | D106: 78 | E106: 79
A107: 2028-05-17 | B107: 0.00% | D107: 79 | E107: 80
A108: 2028-06-17 | B108: 0.00% | D108: 80 | E108: 81
A109: 2028-07-17 | B109: 0.00% | D109: 81 | E109: 82
A110: 2028-08-17 | B110: 0.00% | D110: 82 | E110: 83
A111: 2028-09-17 | B111: 0.00% | D111: 83 | E111: 84
A112: 2028-10-17 | B112: 0.00% | D112: 84 | E112: 85
A113: 2028-11-17 | B113: 0.00% | D113: 85 | E113: 86
A114: 2028-12-17 | B114: 0.00% | D114: 86 | E114: 87
A115: 2029-01-17 | B115: 0.00% | D115: 87 | E115: 88
A116: 2029-02-17 | B116: 0.00% | D116: 88 | E116: 89
A117: 2029-03-17 | B117: 0.00% | D117: 89 | E117: 90
A118: 2029-04-17 | B118: 0.00% | D118: 90 | E118: 91
A119: 2029-05-17 | B119: 0.00% | D119: 91 | E119: 92
A120: 2029-06-17 | B120: 0.00% | D120: 92 | E120: 93
A121: 2029-07-17 | B121: 0.00% | D121: 93 | E121: 94
A122: 2029-08-17 | B122: 0.00% | D122: 94 | E122: 95
A123: 2029-09-17 | B123: 0.00% | D123: 95 | E123: 96
A124: 2029-10-17 | B124: 0.00% | D124: 96 | E124: 97
A125: =IF(MONTH($A$28+1)-MONTH($A$28)=0,IF(DAY(DATE(YEAR($A$28),MONTH($A$28)+E125,1)-1)>DAY($A$28),DATE(YEAR($A$28),MONTH($A$28)+D125,DAY($A$28)),DATE(YEAR($A$28),MONTH($A$28)+E125,1)-1),IF(DAY(A124)>DAY(DATE(YEAR($A$28),MONTH($A$28)+D125,DAY($A$28))),DATE(YEAR($A$28),MONTH($A$28)+E125,1)-1,DATE(YEAR($A$28),MONTH($A$28)+D125,DAY($A$28)))) -> 2029-11-17 | B125: 0.00% | D125: 97 | E125: 98
A126: 2029-12-17 | B126: 0.00% | D126: 98 | E126: 99
A127: 2030-01-17 | B127: 0.00% | D127: 99 | E127: 100
A128: 2030-02-17 | B128: 0.00% | D128: 100 | E128: 101
A129: 2030-03-17 | B129: 0.00% | D129: 101 | E129: 102
A130: 2030-04-17 | B130: 0.00% | D130: 102 | E130: 103
A131: 2030-05-17 | B131: 0.00% | D131: 103 | E131: 104
A132: 2030-06-17 | B132: 0.00% | D132: 104 | E132: 105
A133: 2030-07-17 | B133: 0.00% | D133: 105 | E133: 106
A134: 2030-08-17 | B134: 0.00% | D134: 106 | E134: 107
A135: 2030-09-17 | B135: 0.00% | D135: 107 | E135: 108
A136: 2030-10-17 | B136: 0.00% | D136: 108 | E136: 109
A137: 2030-11-17 | B137: 0.00% | D137: 109 | E137: 110
A138: 2030-12-17 | B138: 0.00% | D138: 110 | E138: 111
A139: 2031-01-17 | B139: 0.00% | D139: 111 | E139: 112
A140: 2031-02-17 | B140: 0.00% | D140: 112 | E140: 113
A141: 2031-03-17 | B141: 0.00% | D141: 113 | E141: 114
A142: 2031-04-17 | B142: 0.00% | D142: 114 | E142: 115
A143: 2031-05-17 | B143: 0.00% | D143: 115 | E143: 116
A144: 2031-06-17 | B144: 0.00% | D144: 116 | E144: 117
A145: 2031-07-17 | B145: 0.00% | D145: 117 | E145: 118
A146: 2031-08-17 | B146: 0.00% | D146: 118 | E146: 119
A147: 2031-09-17 | B147: 0.00% | D147: 119 | E147: 120
A148: 2031-10-17 | B148: 0.00% | D148: 120 | E148: 121
A149: 2031-11-17 | B149: 0.00% | D149: 121 | E149: 122
A150: 2031-12-17 | B150: 0.00% | D150: 122 | E150: 123
A151: 2032-01-17 | B151: 0.00% | D151: 123 | E151: 124
A152: 2032-02-17 | B152: 0.00% | D152: 124 | E152: 125
A153: 2032-03-17 | B153: 0.00% | D153: 125 | E153: 126
A154: 2032-04-17 | B154: 0.00% | D154: 126 | E154: 127
A155: 2032-05-17 | B155: 0.00% | D155: 127 | E155: 128
A156: 2032-06-17 | B156: 0.00% | D156: 128 | E156: 129
A157: =IF(MONTH($A$28+1)-MONTH($A$28)=0,IF(DAY(DATE(YEAR($A$28),MONTH($A$28)+E157,1)-1)>DAY($A$28),DATE(YEAR($A$28),MONTH($A$28)+D157,DAY($A$28)),DATE(YEAR($A$28),MONTH($A$28)+E157,1)-1),IF(DAY(A156)>DAY(DATE(YEAR($A$28),MONTH($A$28)+D157,DAY($A$28))),DATE(YEAR($A$28),MONTH($A$28)+E157,1)-1,DATE(YEAR($A$28),MONTH($A$28)+D157,DAY($A$28)))) -> 2032-07-17 | B157: =IF(A157<$C$7,VLOOKUP(A157,Recargos,2),0) -> 0.00% | D157: 129 | E157: 130
A158: 2032-08-17 | B158: 0.00% | D158: 130 | E158: 131
A159: 2032-09-17 | B159: 0.00% | D159: =1+D158 -> 131 | E159: =1+E158 -> 132
A160: 2032-10-17 | B160: 0.00% | D160: 132 | E160: 133
A161: 2032-11-17 | B161: 0.00% | D161: 133 | E161: 134
A162: 2032-12-17 | B162: 0.00% | D162: 134 | E162: 135
A163: 2033-01-17 | B163: 0.00% | D163: 135 | E163: 136
A164: 2033-02-17 | B164: 0.00% | D164: 136 | E164: 137
A165: 2033-03-17 | B165: 0.00% | D165: 137 | E165: 138
A166: 2033-04-17 | B166: 0.00% | D166: 138 | E166: 139
A167: 2033-05-17 | B167: 0.00% | D167: 139 | E167: 140
A168: 2033-06-17 | B168: 0.00% | D168: 140 | E168: 141
A169: 2033-07-17 | B169: 0.00% | D169: 141 | E169: 142
A170: 2033-08-17 | B170: 0.00% | D170: 142 | E170: 143
A171: 2033-09-17 | B171: 0.00% | D171: 143 | E171: 144
A172: 2033-10-17 | B172: 0.00% | D172: 144 | E172: 145
A173: 2033-11-17 | B173: 0.00% | D173: 145 | E173: 146
A174: 2033-12-17 | B174: 0.00% | D174: 146 | E174: 147
A175: 2034-01-17 | B175: 0.00% | D175: 147 | E175: 148
A176: 2034-02-17 | B176: 0.00% | D176: 148 | E176: 149
A177: 2034-03-17 | B177: 0.00% | D177: 149 | E177: 150
A178: 2034-04-17 | B178: 0.00% | D178: 150 | E178: 151
A179: 2034-05-17 | B179: 0.00% | D179: 151 | E179: 152
A180: 2034-06-17 | B180: 0.00% | D180: 152 | E180: 153
A181: 2034-07-17 | B181: 0.00% | D181: 153 | E181: 154
A182: 2034-08-17 | B182: 0.00% | D182: 154 | E182: 155
A183: 2034-09-17 | B183: 0.00% | D183: 155 | E183: 156
A184: 2034-10-17 | B184: 0.00% | D184: 156 | E184: 157

Sheet Recargos
A1: Mes | B1: Tasa de recargos | C1: Tasa de recargos prórroga | D1: Fecha de publicación
A2: 1990-01-01 | B2: 3.00%
A3: 1990-02-01 | B3: 3.00%
A4: 1990-03-01 | B4: 3.00%
A5: 1990-04-01 | B5: 3.00%
A6: 1990-05-01 | B6: 3.00%
A7: 1990-06-01 | B7: 3.00%
A8: 1990-07-01 | B8: 3.00%
A9: 1990-08-01 | B9: 3.00%
A10: 1990-09-01 | B10: 3.00%
A11: 1990-10-01 | B11: 3.00%
A12: 1990-11-01 | B12: 3.00%
A13: 1990-12-01 | B13: 3.00%
A14: 1991-01-01 | B14: 2.25%
A15: 1991-02-01 | B15: 2.25%
A16: 1991-03-01 | B16: 2.25%
A17: 1991-04-01 | B17: 2.25%
A18: 1991-05-01 | B18: 2.25%
A19: 1991-06-01 | B19: 2.25%
A20: 1991-07-01 | B20: 2.25%
A21: 1991-08-01 | B21: 2.25%
A22: 1991-09-01 | B22: 2.25%
A23: 1991-10-01 | B23: 2.25%
A24: 1991-11-01 | B24: 2.25%
A25: 1991-12-01 | B25: 2.25%
A26: 1992-01-01 | B26: 1.50%
A27: 1992-02-01 | B27: 1.50%
A28: 1992-03-01 | B28: 1.50%
A29: 1992-04-01 | B29: 1.50%
A30: 1992-05-01 | B30: 1.50%
A31: 1992-06-01 | B31: 1.50%
A32: 1992-07-01 | B32: 1.50%
A33: 1992-08-01 | B33: 1.50%
A34: 1992-09-01 | B34: 1.50%
A35: 1992-10-01 | B35: 1.50%
A36: 1992-11-01 | B36: 1.50%
A37: 1992-12-01 | B37: 1.50%
A38: 1993-01-01 | B38: 2.70%
A39: 1993-02-01 | B39: 2.10%
A40: 1993-03-01 | B40: 2.20%
A41: 1993-04-01 | B41: 2.70%
A42: 1993-05-01 | B42: 2.70%
A43: 1993-06-01 | B43: 2.70%
A44: 1993-07-01 | B44: 2.60%
A45: 1993-08-01 | B45: 2.20%
A46: 1993-09-01 | B46: 2.40%
A47: 1993-10-01 | B47: 2.20%
A48: 1993-11-01 | B48: 1.80%
A49: 1993-12-01 | B49: 2.50%
A50: 1994-01-01 | B50: 3.00%
A51: 1994-02-01 | B51: 1.60%
A52: 1994-03-01 | B52: 1.34%
A53: 1994-04-01 | B53: 1.70%
A54: 1994-05-01 | B54: 2.25%
A55: 1994-06-01 | B55: 2.86%
A56: 1994-07-01 | B56: 2.90%
A57: 1994-08-01 | B57: 3.00%
A58: 1994-09-01 | B58: 3.00%
A59: 1994-10-01 | B59: 2.80%
A60: 1994-11-01 | B60: 2.34%
A61: 1994-12-01 | B61: 2.72%
A62: 1995-01-01 | B62: 3.00%
A63: 1995-02-01 | B63: 3.00%
A64: 1995-03-01 | B64: 3.00%
A65: 1995-04-01 | B65: 3.00%
A66: 1995-05-01 | B66: 3.00%
A67: 1995-06-01 | B67: 0.86%
A68: 1995-07-01 | B68: 3.00%
A69: 1995-08-01 | B69: 3.00%
A70: 1995-09-01 | B70: 3.00%
A71: 1995-10-01 | B71: 3.00%
A72: 1995-11-01 | B72: 3.00%
A73: 1995-12-01 | B73: 3.00%
A74: 1996-01-01 | B74: 3.00%
A75: 1996-02-01 | B75: 3.00%
A76: 1996-03-01 | B76: 3.00%
A77: 1996-04-01 | B77: 3.00%
A78: 1996-05-01 | B78: 3.00%
A79: 1996-06-01 | B79: 2.18%
A80: 1996-07-01 | B80: 3.00%
A81: 1996-08-01 | B81: 3.00%
A82: 1996-09-01 | B82: 3.00%
A83: 1996-10-01 | B83: 3.00%
A84: 1996-11-01 | B84: 3.00%
A85: 1996-12-01 | B85: 3.00%
A86: 1997-01-01 | B86: 3.00%
A87: 1997-02-01 | B87: 0.72%
A88: 1997-03-01 | B88: 0.84%
A89: 1997-04-01 | B89: 1.62%
A90: 1997-05-01 | B90: 2.63%
A91: 1997-06-01 | B91: 2.88%
A92: 1997-07-01 | B92: 2.51%
A93: 1997-08-01 | B93: 2.90%
A94: 1997-09-01 | B94: 2.54%
A95: 1997-10-01 | B95: 2.54%
A96: 1997-11-01 | B96: 1.94%
A97: 1997-12-01 | B97: 2.49%
A98: 1998-01-01 | B98: 2.48%
A99: 1998-02-01 | B99: 1.74%
A100: 1998-03-01 | B100: 0.44%
A101: 1998-04-01 | B101: 1.22%
A102: 1998-05-01 | B102: 2.31%
A103: 1998-06-01 | B103: 2.45%
A104: 1998-07-01 | B104: 2.54%
A105: 1998-08-01 | B105: 2.25%
A106: 1998-09-01 | B106: 2.66%
A107: 1998-10-01 | B107: 3.00%
A108: 1998-11-01 | B108: 3.00%
A109: 1998-12-01 | B109: 3.00%
A110: 1999-01-01 | B110: 3.00%
A111: 1999-02-01 | B111: 3.00%
A112: 1999-03-01 | B112: 2.92%
A113: 1999-04-01 | B113: 3.00%
A114: 1999-05-01 | B114: 3.00%
A115: 1999-06-01 | B115: 2.85%
A116: 1999-07-01 | B116: 3.00%
A117: 1999-08-01 | B117: 3.00%
A118: 1999-09-01 | B118: 3.00%
A119: 1999-10-01 | B119: 3.00%
A120: 1999-11-01 | B120: 2.70%
A121: 1999-12-01 | B121: 2.92%
A122: 2000-01-01 | B122: 2.23%
A123: 2000-02-01 | B123: 2.01%
A124: 2000-03-01 | B124: 1.47%
A125: 2000-04-01 | B125: 2.07%
A126: 2000-05-01 | B126: 2.15%
A127: 2000-06-01 | B127: 2.00%
A128: 2000-07-01 | B128: 2.43%
A129: 2000-08-01 | B129: 2.39%
A130: 2000-09-01 | B130: 2.31%
A131: 2000-10-01 | B131: 2.30%
A132: 2000-11-01 | B132: 2.06%
A133: 2000-12-01 | B133: 2.22% | C133: 1.48% | D133: 2000-11-30
A134: 2001-01-01 | B134: 2.22% | C134: 1.48% | D134: 2001-01-19
A135: 2001-02-01 | B135: 1.83% | C135: 1.22% | D135: 2001-02-09
A136: 2001-03-01 | B136: 2.66% | C136: 1.77% | D136: 2001-02-27
A137: 2001-04-01 | B137: 3.00% | C137: 2.00% | D137: 2001-04-26
A138: 2001-05-01 | B138: 2.30% | C138: 1.53% | D138: 2001-05-08
A139: 2001-06-01 | B139: 2.31% | C139: 1.54% | D139: 2001-06-04
A140: 2001-07-01 | B140: 2.42% | C140: 1.61% | D140: 2001-07-11
A141: 2001-08-01 | B141: 2.10% | C141: 1.40% | D141: 2001-08-03
A142: 2001-09-01 | B142: 2.78% | C142: 1.85% | D142: 2001-09-10
A143: 2001-10-01 | B143: 1.28% | C143: 0.85% | D143: 2001-10-05
A144: 2001-11-01 | B144: 0.98% | C144: 0.65% | D144: 2001-11-01
A145: 2001-12-01 | B145: 1.62% | C145: 1.08% | D145: 2001-12-04
A146: 2002-01-01 | B146: 1.55% | C146: 1.03% | D146: 2002-01-21
A147: 2002-02-01 | B147: 1.79% | C147: 1.19% | D147: 2002-02-11
A148: 2002-03-01 | B148: 0.62% | C148: 0.41% | D148: 2002-02-28
A149: 2002-04-01 | B149: 2.22% | C149: 1.48% | D149: 2002-04-08
A150: 2002-05-01 | B150: 1.29% | C150: 0.86% | D150: 2002-04-30
A151: 2002-06-01 | B151: 1.04% | C151: 0.69% | D151: 2002-06-06
A152: 2002-07-01 | B152: 1.67% | C152: 1.11% | D152: 2002-07-02
A153: 2002-08-01 | B153: 1.32% | C153: 0.88% | D153: 2002-07-26
A154: 2002-09-01 | B154: 1.61% | C154: 1.07% | D154: 2002-08-26
A155: 2002-10-01 | B155: 1.38% | C155: 0.92% | D155: 2002-10-01
A156: 2002-11-01 | B156: 1.14% | C156: 0.76% | D156: 2002-10-25
A157: 2002-12-01 | B157: 1.43% | C157: 0.95% | D157: 2002-12-03
A158: 2003-01-01 | B158: 2.01% | C158: 1.34% | D158: 2003-01-20
A159: 2003-02-01 | B159: 2.15% | C159: 1.43% | D159: 2003-01-27
A160: 2003-03-01 | B160: 1.94% | C160: 1.29% | D160: 2003-02-26
A161: 2003-04-01 | B161: 2.07% | C161: 1.38% | D161: 2003-03-24
A162: 2003-05-01 | B162: 2.12% | C162: 1.41% | D162: 2003-05-08
A163: 2003-06-01 | B163: 1.97% | C163: 1.31% | D163: 2003-05-27
A164: 2003-07-01 | B164: 1.76% | C164: 1.17% | D164: 2003-07-01
A165: 2003-08-01 | B165: 1.61% | C165: 1.07% | D165: 2003-07-31
A166: 2003-09-01 | B166: 1.55% | C166: 1.03% | D166: 2003-09-01
A167: 2003-10-01 | B167: 1.52% | C167: 1.01% | D167: 2003-09-30
A168: 2003-11-01 | B168: 1.52% | C168: 1.01% | D168: 2003-11-10
A169: 2003-12-01 | B169: 1.49% | C169: 0.99% | D169: 2003-12-16
A170: 2004-01-01 | B170: 1.13% | C170: 0.75% | D170: 2004-01-26
A171: 2004-02-01 | B171: 1.13% | C171: 0.75% | D171: 2004-02-11
A172: 2004-03-01 | B172: 1.13% | C172: 0.75% | D172: 2004-03-01
A173: 2004-04-01 | B173: 1.13% | C173: 0.75% | D173: 2004-03-24
A174: 2004-05-01 | B174: 1.13% | C174: 0.75% | D174: 2004-05-17
A175: 2004-06-01 | B175: 1.13% | C175: 0.75% | D175: 2004-05-28
A176: 2004-07-01 | B176: 1.13% | C176: 0.75% | D176: 2004-06-29
A177: 2004-08-01 | B177: 1.13% | C177: 0.75% | D177: 2004-07-27
A178: 2004-09-01 | B178: 1.13% | C178: 0.75% | D178: 2004-08-31
A179: 2004-10-01 | B179: 1.13% | C179: 0.75% | D179: 2004-11-19
A180: 2004-11-01 | B180: 1.13% | C180: 0.75% | D180: 2004-11-22
A181: 2004-12-01 | B181: 1.13% | C181: 0.75% | D181: 2004-11-30
A182: 2005-01-01 | B182: 1.13% | C182: 0.75% | D182: 2005-01-28
A183: 2005-02-01 | B183: 1.13% | C183: 0.75% | D183: 2005-02-28
A184: 2005-03-01 | B184: 1.13% | C184: 0.75% | D184: 2005-03-08
A185: 2005-04-01 | B185: 1.13% | C185: 0.75% | D185: 2005-04-04
A186: 2005-05-01 | B186: 1.13% | C186: 0.75% | D186: 2005-05-03
A187: 2005-06-01 | B187: 1.13% | C187: 0.75% | D187: 2005-05-31
A188: 2005-07-01 | B188: 1.13% | C188: 0.75% | D188: 2005-06-29
A189: 2005-08-01 | B189: 1.13% | C189: 0.75% | D189: 2005-07-25
A190: 2005-09-01 | B190: 1.13% | C190: 0.75% | D190: 2005-08-31
A191: 2005-10-01 | B191: 1.13% | C191: 0.75% | D191: 2005-10-03
A192: 2005-11-01 | B192: 1.13% | C192: 0.75% | D192: 2005-11-03
A193: 2005-12-01 | B193: 1.13% | C193: 0.75% | D193: 2005-12-09
A194: 2006-01-01 | B194: 1.13% | C194: 0.75% | D194: Tasa fija para 2006 según Ley de Ingresos
A195: 2006-02-01 | B195: 1.13% | C195: 0.75%
A196: 2006-03-01 | B196: 1.13% | C196: 0.75%
A197: 2006-04-01 | B197: 1.13% | C197: 0.75%
A198: 2006-05-01 | B198: 1.13% | C198: 0.75%
A199: 2006-06-01 | B199: 1.13% | C199: 0.75%
A200: 2006-07-01 | B200: 1.13% | C200: 0.75%
... 209 more rows

Sheet INPC
A1: 1999-01-01 | B1: 40.469770280540
A2: 1999-02-01 | B2: 41.01364281
A3: 1999-03-01 | B3: 41.39468378
A4: 1999-04-01 | B4: 41.77457661
A5: 1999-05-01 | B5: 42.025877076750
A6: 1999-06-01 | B6: 42.3020062
A7: 1999-07-01 | B7: 42.58157977
A8: 1999-08-01 | B8: 42.82125526
A9: 1999-09-01 | B9: 43.23501839
A10: 1999-10-01 | B10: 43.50885123
A11: 1999-11-01 | B11: 43.895776447020
A12: 1999-12-01 | B12: 44.33551639
A13: 2000-01-01 | B13: 44.93083012
A14: 2000-02-01 | B14: 45.32938031
A15: 2000-03-01 | B15: 45.58068078
A16: 2000-04-01 | B16: 45.84001827
A17: 2000-05-01 | B17: 46.01137907
A18: 2000-06-01 | B18: 46.28392024
A19: 2000-07-01 | B19: 46.46446621
A20: 2000-08-01 | B20: 46.71978519
A21: 2000-09-01 | B21: 47.0610716
A22: 2000-10-01 | B22: 47.38513583
A23: 2000-11-01 | B23: 47.79028786
A24: 2000-12-01 | B24: 48.30767118
A25: 2001-01-01 | B25: 48.57547625
A26: 2001-02-01 | B26: 48.54332816
A27: 2001-03-01 | B27: 48.85088778
A28: 2001-04-01 | B28: 49.09730863
A29: 2001-05-01 | B29: 49.20997046
A30: 2001-06-01 | B30: 49.32636377
A31: 2001-07-01 | B31: 49.198201964030
A32: 2001-08-01 | B32: 49.48968755
A33: 2001-09-01 | B33: 49.95038115
A34: 2001-10-01 | B34: 50.17613537
A35: 2001-11-01 | B35: 50.36514891
A36: 2001-12-01 | B36: 50.43489879
A37: 2002-01-01 | B37: 50.90047201
A38: 2002-02-01 | B38: 50.86774985
A39: 2002-03-01 | B39: 51.12794844
A40: 2002-04-01 | B40: 51.40723497
A41: 2002-05-01 | B41: 51.51142923
A42: 2002-06-01 | B42: 51.76258618
A43: 2002-07-01 | B43: 51.91118135
A44: 2002-08-01 | B44: 52.1085603
A45: 2002-09-01 | B45: 52.42198356
A46: 2002-10-01 | B46: 52.65303609
A47: 2002-11-01 | B47: 53.07887728
A48: 2002-12-01 | B48: 53.3099298
A49: 2003-01-01 | B49: 53.52544068
A50: 2003-02-01 | B50: 53.674122454970
A51: 2003-03-01 | B51: 54.01293041
A52: 2003-04-01 | B52: 54.105144199470
A53: 2003-05-01 | B53: 53.93055967
A54: 2003-06-01 | B54: 53.9751124
A55: 2003-07-01 | B55: 54.0533387
A56: 2003-08-01 | B56: 54.21548991
A57: 2003-09-01 | B57: 54.53823816
A58: 2003-10-01 | B58: 54.73820739
A59: 2003-11-01 | B59: 55.192541605370
A60: 2003-12-01 | B60: 55.42981079
A61: 2004-01-01 | B61: 55.774317349450
A62: 2004-02-01 | B62: 56.10794476
A63: 2004-03-01 | B63: 56.29807094
A64: 2004-04-01 | B64: 56.38303195
A65: 2004-05-01 | B65: 56.24160294
A66: 2004-06-01 | B66: 56.33174451
A67: 2004-07-01 | B67: 56.47939018
A68: 2004-08-01 | B68: 56.828041181560
A69: 2004-09-01 | B69: 57.29791705
A70: 2004-10-01 | B70: 57.69474717
A71: 2004-11-01 | B71: 58.1868994
A72: 2004-12-01 | B72: 58.30708815
A73: 2005-01-01 | B73: 58.30916037
A74: 2005-02-01 | B74: 58.50343099
A75: 2005-03-01 | B75: 58.76712098
A76: 2005-04-01 | B76: 58.97641519
A77: 2005-05-01 | B77: 58.82825146
A78: 2005-06-01 | B78: 58.77178347
A79: 2005-07-01 | B79: 59.00179988
A80: 2005-08-01 | B80: 59.07225536
A81: 2005-09-01 | B81: 59.30900649
A82: 2005-10-01 | B82: 59.45457994
A83: 2005-11-01 | B83: 59.88249335
A84: 2005-12-01 | B84: 60.25031239
A85: 2006-01-01 | B85: 60.60362589
A86: 2006-02-01 | B86: 60.69635773
A87: 2006-03-01 | B87: 60.77251181
A88: 2006-04-01 | B88: 60.86161727
A89: 2006-05-01 | B89: 60.59067451
A90: 2006-06-01 | B90: 60.642998064380
A91: 2006-07-01 | B91: 60.80929371
A92: 2006-08-01 | B92: 61.11960865
A93: 2006-09-01 | B93: 61.73661213
A94: 2006-10-01 | B94: 62.00651878
A95: 2006-11-01 | B95: 62.3318573
A96: 2006-12-01 | B96: 62.69242357
A97: 2007-01-01 | B97: 63.01620793
A98: 2007-02-01 | B98: 63.19234663
A99: 2007-03-01 | B99: 63.32911314
A100: 2007-04-01 | B100: 63.29129513
A101: 2007-05-01 | B101: 62.98253436
A102: 2007-06-01 | B102: 63.05817039
A103: 2007-07-01 | B103: 63.32600481
A104: 2007-08-01 | B104: 63.58399619
A105: 2007-09-01 | B105: 64.07770259
A106: 2007-10-01 | B106: 64.32740509
A107: 2007-11-01 | B107: 64.78122126
A108: 2007-12-01 | B108: 65.04905568
A109: 2008-01-01 | B109: 65.35056368
A110: 2008-02-01 | B110: 65.5448343
A111: 2008-03-01 | B111: 66.01989072
A112: 2008-04-01 | B112: 66.17012666
A113: 2008-05-01 | B113: 66.09863507
A114: 2008-06-01 | B114: 66.3721681
A115: 2008-07-01 | B115: 66.74205936
A116: 2008-08-01 | B116: 67.12749227
A117: 2008-09-01 | B117: 67.584934814760
A118: 2008-10-01 | B118: 68.045485693200
A119: 2008-11-01 | B119: 68.81894178
A120: 2008-12-01 | B120: 69.29555236
A121: 2009-01-01 | B121: 69.45614941
A122: 2009-02-01 | B122: 69.609493681960
A123: 2009-03-01 | B123: 70.00995018
A124: 2009-04-01 | B124: 70.25499019
A125: 2009-05-01 | B125: 70.05035847
A126: 2009-06-01 | B126: 70.17935416
A127: 2009-07-01 | B127: 70.37051645
A128: 2009-08-01 | B128: 70.53888432
A129: 2009-09-01 | B129: 70.89271587
A130: 2009-10-01 | B130: 71.10719063
A131: 2009-11-01 | B131: 71.47604578
A132: 2009-12-01 | B132: 71.77185517
A133: 2010-01-01 | B133: 72.55204598
A134: 2010-02-01 | B134: 72.97167051
A135: 2010-03-01 | B135: 73.48972549
A136: 2010-04-01 | B136: 73.25556464
A137: 2010-05-01 | B137: 72.79397765
A138: 2010-06-01 | B138: 72.77118323
A139: 2010-07-01 | B139: 72.929190002590
A140: 2010-08-01 | B140: 73.1317495
A141: 2010-09-01 | B141: 73.51511019
A142: 2010-10-01 | B142: 73.96892635
A143: 2010-11-01 | B143: 74.56158125
A144: 2010-12-01 | B144: 74.930954450610 | C144: =B144/B143-1 -> 0.005
A145: 2011-01-01 | B145: 75.29599135 | C145: 0.0049
A146: 2011-02-01 | B146: 75.57846024 | C146: 0.0038
A147: 2011-03-01 | B147: 75.72345093 | C147: 0.0019
A148: 2011-04-01 | B148: 75.717440951980 | C148: -0.0001
A149: 2011-05-01 | B149: 75.15926438 | C149: -0.0074
A150: 2011-06-01 | B150: 75.15550814 | C150: -0.0000
A151: 2011-07-01 | B151: 75.51610674 | C151: 0.0048
A152: 2011-08-01 | B152: 75.63555502 | C152: 0.0016
A153: 2011-09-01 | B153: 75.82111305 | C153: 0.0025
A154: 2011-10-01 | B154: 76.3327123 | C154: 0.0067
A155: 2011-11-01 | B155: 77.15833283 | C155: 0.0108
A156: 2011-12-01 | B156: 77.79238536 | C156: 0.0082
A157: 2012-01-01 | B157: 78.34304946 | C157: 0.0071
A158: 2012-02-01 | B158: 78.50231384 | C158: 0.0020
A159: 2012-03-01 | B159: 78.54738867 | C159: 0.0006
A160: 2012-04-01 | B160: 78.300979626180 | C160: -0.0031
A161: 2012-05-01 | B161: 78.05381934 | C161: -0.0032
A162: 2012-06-01 | B162: 78.413666686700 | C162: 0.0046
A163: 2012-07-01 | B163: 78.853897469800 | C163: 0.0056
A164: 2012-08-01 | B164: 79.0905403 | C164: 0.0030
A165: 2012-09-01 | B165: 79.43911894 | C165: 0.0044
A166: 2012-10-01 | B166: 79.84103612 | C166: 0.0051
A167: 2012-11-01 | B167: 80.3834365 | C167: 0.0068
A168: 2012-12-01 | B168: 80.56824328 | C168: 0.0023 | D168: =B168/B156-1 -> 0.0357
A169: 2013-01-01 | B169: 80.892782018150 | C169: 0.0040
A170: 2013-02-01 | B170: 81.29094297 | C170: 0.0049
A171: 2013-03-01 | B171: 81.88743314 | C171: 0.0073
A172: 2013-04-01 | B172: 81.94152293 | C172: 0.0007
A173: 2013-05-01 | B173: 81.66882024 | C173: -0.0033
A174: 2013-06-01 | B174: 81.61923793 | C174: -0.0006
A175: 2013-07-01 | B175: 81.59219304 | C175: -0.0003
A176: 2013-08-01 | B176: 81.82432839 | C176: 0.0028
A177: 2013-09-01 | B177: 82.13233968 | C177: 0.0038
A178: 2013-10-01 | B178: 82.52298816 | C178: 0.0048
A179: 2013-11-01 | B179: 83.29226516 | C179: 0.0093
A180: 2013-12-01 | B180: 83.7700583 | C180: 0.0057
A181: 2014-01-01 | B181: 84.51905163 | C181: 0.0089
A182: 2014-02-01 | B182: 84.73315704 | C182: 0.0025
A183: 2014-03-01 | B183: 84.965292385360 | C183: 0.0027
A184: 2014-04-01 | B184: 84.80677925 | C184: -0.0019
A185: 2014-05-01 | B185: 84.53557906 | C185: -0.0032
A186: 2014-06-01 | B186: 84.68207224 | C186: 0.0017
A187: 2014-07-01 | B187: 84.91495883 | C187: 0.0028
A188: 2014-08-01 | B188: 85.21996514 | C188: 0.0036
A189: 2014-09-01 | B189: 85.59633992 | C189: 0.0044
A190: 2014-10-01 | B190: 86.069625578460 | C190: 0.0055
A191: 2014-11-01 | B191: 86.76377787 | C191: 0.0081
A192: 2014-12-01 | B192: 87.18898371 | C192: 0.0049
A193: 2015-01-01 | B193: 87.11010277 | C193: -0.0009
A194: 2015-02-01 | B194: 87.27537713 | C194: 0.0019
A195: 2015-03-01 | B195: 87.63071699 | C195: 0.0041
A196: 2015-04-01 | B196: 87.40384038 | C196: -0.0026
A197: 2015-05-01 | B197: 86.96736583 | C197: -0.0050
A198: 2015-06-01 | B198: 87.113107758880 | C198: 0.0017
A199: 2015-07-01 | B199: 87.24081976 | C199: 0.0015
A200: 2015-08-01 | B200: 87.42487529 | C200: 0.0021
... 100 more rows
